[Event "GrandPrix_30.05"]
[Site "Chess.com"]
[Date "2020.05.30"]
[Round "2"]
[White "gygygygygyggygygygy"]
[Black "Pultis"]
[Result "1/2-1/2"]
[WhiteElo "2012"]
[BlackElo "2231"]
[TimeControl "600+2"]
[EndTime "8:51:04 PDT"]
[Termination "Game drawn by repetition"]

1. e4 {[%clk 0:10:01.9]} 1... c6 {[%clk 0:10:01.4]} 2. d3 {[%clk 0:10:02.3]}
2... d5 {[%clk 0:09:55.6]} 3. Nd2 {[%clk 0:10:03.1]} 3... g6 {[%clk 0:09:47.1]}
4. Ngf3 {[%clk 0:10:04.3]} 4... Bg7 {[%clk 0:09:47.8]} 5. g3 {[%clk 0:10:05.7]}
5... e5 {[%clk 0:09:47.5]} 6. Bg2 {[%clk 0:10:06.8]} 6... Ne7 {[%clk 0:09:47.6]}
7. O-O {[%clk 0:10:08.1]} 7... h6 {[%clk 0:09:45.7]} 8. Re1 {[%clk 0:10:04.5]}
8... d4 {[%clk 0:09:44.7]} 9. a4 {[%clk 0:10:02.3]} 9... a5 {[%clk 0:09:44.6]}
10. Rf1 {[%clk 0:09:48.6]} 10... Be6 {[%clk 0:09:28.2]} 11. Ne1 {[%clk
0:08:31.8]} 11... g5 {[%clk 0:07:43.5]} 12. Nc4 {[%clk 0:08:23.6]} 12... Ng6
{[%clk 0:07:42.8]} 13. b3 {[%clk 0:08:04.9]} 13... b5 {[%clk 0:07:41.7]} 14. Na3
{[%clk 0:08:02.6]} 14... Qd7 {[%clk 0:07:40.7]} 15. Bd2 {[%clk 0:07:53.2]} 15...
O-O {[%clk 0:07:39.1]} 16. b4 {[%clk 0:07:46.9]} 16... axb4 {[%clk 0:07:37.1]}
17. Bxb4 {[%clk 0:07:44.1]} 17... Rxa4 {[%clk 0:07:37.9]} 18. Bxf8 {[%clk
0:07:44.3]} 18... Bxf8 {[%clk 0:07:39.8]} 19. Nxb5 {[%clk 0:05:47.6]} 19... cxb5
{[%clk 0:07:39.2]} 20. Nf3 {[%clk 0:05:47.3]} 20... g4 {[%clk 0:07:36.7]} 21.
Nd2 {[%clk 0:05:46.2]} 21... Bb4 {[%clk 0:07:38.1]} 22. Nb3 {[%clk 0:05:40.9]}
22... Bc3 {[%clk 0:07:34.7]} 23. Nc5 {[%clk 0:05:38.8]} 23... Rxa1 {[%clk
0:07:31.3]} 24. Qxa1 {[%clk 0:05:21.9]} 24... Qe7 {[%clk 0:07:22]} 25. Qa8
{[%clk 0:05:10.7]} 25... Qxc5 {[%clk 0:07:21.8]} 26. Qxb8+ {[%clk 0:05:11.5]}
26... Kg7 {[%clk 0:07:22.9]} 27. f4 {[%clk 0:05:04.9]} 27... gxf3 {[%clk
0:07:24.8]} 28. Bxf3 {[%clk 0:05:05.4]} 28... Bd2 {[%clk 0:07:22.6]} 29. Bh5
{[%clk 0:04:32.2]} 29... Be3+ {[%clk 0:07:22.4]} 30. Kh1 {[%clk 0:04:32.3]}
30... Bh3 {[%clk 0:07:18.4]} 31. Rxf7+ {[%clk 0:03:40.1]} 31... Kxf7 {[%clk
0:07:20.3]} 32. Qb7+ {[%clk 0:03:40.1]} 32... Kf6 {[%clk 0:07:18.2]} 33. Qa6+
{[%clk 0:03:15.4]} 33... Be6 {[%clk 0:07:19]} 34. Bxg6 {[%clk 0:02:58.6]} 34...
Qxc2 {[%clk 0:07:18.6]} 35. Bf5 {[%clk 0:02:43.3]} 35... Qd1+ {[%clk 0:07:18.4]}
36. Kg2 {[%clk 0:02:43.5]} 36... Qe2+ {[%clk 0:07:19.9]} 37. Kh3 {[%clk
0:02:37.8]} 37... Qf1+ {[%clk 0:07:21.4]} 38. Kg4 {[%clk 0:01:57.9]} 38... h5+
{[%clk 0:07:21.5]} 39. Kxh5 {[%clk 0:01:42.9]} 39... Qe2+ {[%clk 0:07:21.5]} 40.
Kh4 {[%clk 0:01:33.6]} 40... Qxh2+ {[%clk 0:07:21.6]} 41. Kg4 {[%clk 0:01:35.1]}
41... Qe2+ {[%clk 0:07:12.4]} 42. Kh3 {[%clk 0:01:29.5]} 42... Qh5+ {[%clk
0:07:08.5]} 43. Kg2 {[%clk 0:01:29.6]} 43... Qe8 {[%clk 0:07:10.2]} 44. Bxe6
{[%clk 0:01:23.5]} 44... Qxe6 {[%clk 0:07:12.1]} 45. Qxb5 {[%clk 0:01:25]} 45...
Kg5 {[%clk 0:07:10.2]} 46. Qa5 {[%clk 0:01:09.2]} 46... Qf6 {[%clk 0:07:05.3]}
47. Qa2 {[%clk 0:01:01.4]} 47... Kh6 {[%clk 0:06:44.9]} 48. Qe2 {[%clk
0:00:47.4]} 48... Qg6 {[%clk 0:06:42.9]} 49. Qf3 {[%clk 0:00:45.1]} 49... Kg7
{[%clk 0:06:43.9]} 50. Qe2 {[%clk 0:00:35.3]} 50... Bf4 {[%clk 0:06:38]} 51. Qf3
{[%clk 0:00:34]} 51... Kh6 {[%clk 0:06:34.3]} 52. Kf2 {[%clk 0:00:31.2]} 52...
Qxg3+ {[%clk 0:06:34.9]} 53. Qxg3 {[%clk 0:00:30.2]} 53... Bxg3+ {[%clk
0:06:36.8]} 54. Kxg3 {[%clk 0:00:31.1]} 54... Kg5 {[%clk 0:06:37.9]} 55. Kf3
{[%clk 0:00:08.2]} 55... Kh4 {[%clk 0:06:38.6]} 56. Kf2 {[%clk 0:00:05.9]} 56...
Kh3 {[%clk 0:06:07.3]} 57. Kf3 {[%clk 0:00:06.7]} 57... Kh4 {[%clk 0:06:09.2]}
58. Kf2 {[%clk 0:00:07.4]} 58... Kh5 {[%clk 0:06:11.1]} 59. Kf3 {[%clk
0:00:07.6]} 59... Kg5 {[%clk 0:04:57.1]} 60. Kg3 {[%clk 0:00:08]} 60... Kh5
{[%clk 0:04:57.5]} 61. Kh3 {[%clk 0:00:09.1]} 61... Kg5 {[%clk 0:04:57.5]} 62.
Kg3 {[%clk 0:00:10.3]} 62... Kh5 {[%clk 0:04:57.7]} 63. Kh3 {[%clk 0:00:11.4]}
63... Kg5 {[%clk 0:04:59.1]} 64. Kg3 {[%clk 0:00:12.6]} 1/2-1/2

[Event "GrandPrix_30.05"]
[Site "Chess.com"]
[Date "2020.05.30"]
[Round "2"]
[White "Nikame"]
[Black "PeshkaTheGreat"]
[Result "0-1"]
[WhiteElo "2200"]
[BlackElo "2129"]
[TimeControl "600+2"]
[EndTime "8:51:20 PDT"]
[Termination "PeshkaTheGreat won by resignation"]

1. d4 {[%clk 0:10:01.9]} 1... d5 {[%clk 0:09:54.8]} 2. c4 {[%clk 0:10:00.1]}
2... c6 {[%clk 0:09:55.7]} 3. Nf3 {[%clk 0:09:58.5]} 3... Nf6 {[%clk 0:09:56.6]}
4. Qc2 {[%clk 0:09:53.4]} 4... e6 {[%clk 0:09:47.8]} 5. Nbd2 {[%clk 0:09:49.9]}
5... Nbd7 {[%clk 0:09:04.8]} 6. g3 {[%clk 0:09:49.3]} 6... Bd6 {[%clk
0:08:20.7]} 7. Bg2 {[%clk 0:09:49.1]} 7... O-O {[%clk 0:08:15.2]} 8. O-O {[%clk
0:09:49.5]} 8... Re8 {[%clk 0:08:12.8]} 9. b3 {[%clk 0:09:47.7]} 9... e5 {[%clk
0:08:06.2]} 10. cxd5 {[%clk 0:09:41.9]} 10... cxd5 {[%clk 0:08:04.3]} 11. dxe5
{[%clk 0:09:39.7]} 11... Nxe5 {[%clk 0:08:03.3]} 12. Bb2 {[%clk 0:09:33.4]}
12... Nc6 {[%clk 0:07:54.9]} 13. e3 {[%clk 0:09:21.6]} 13... Nb4 {[%clk
0:07:50.8]} 14. Qb1 {[%clk 0:09:18.5]} 14... Bg4 {[%clk 0:07:45.1]} 15. a3
{[%clk 0:08:45]} 15... Nc6 {[%clk 0:07:40]} 16. b4 {[%clk 0:08:43.5]} 16... Qd7
{[%clk 0:07:18.1]} 17. Bxf6 {[%clk 0:08:38.2]} 17... gxf6 {[%clk 0:07:11.8]} 18.
Nb3 {[%clk 0:08:25.8]} 18... Be5 {[%clk 0:06:00.6]} 19. Ra2 {[%clk 0:08:19.2]}
19... a5 {[%clk 0:05:32]} 20. b5 {[%clk 0:08:16.5]} 20... Ne7 {[%clk 0:05:32.8]}
21. a4 {[%clk 0:07:26.5]} 21... Qf5 {[%clk 0:04:37]} 22. Qxf5 {[%clk 0:06:52.4]}
22... Bxf5 {[%clk 0:04:38.4]} 23. Rd1 {[%clk 0:06:39.7]} 23... Rac8 {[%clk
0:04:32.5]} 24. Nfd4 {[%clk 0:06:38.4]} 24... Bg6 {[%clk 0:04:29]} 25. Nxa5
{[%clk 0:06:34.8]} 25... Bxd4 {[%clk 0:03:57.6]} 26. exd4 {[%clk 0:06:35.5]}
26... b6 {[%clk 0:03:58.2]} 27. Nc6 {[%clk 0:06:25.8]} 27... Nxc6 {[%clk
0:03:52.3]} 28. bxc6 {[%clk 0:06:26.7]} 28... Rxc6 {[%clk 0:03:54.2]} 29. Bxd5
{[%clk 0:06:27.5]} 29... Rc2 {[%clk 0:03:45.9]} 30. Rxc2 {[%clk 0:04:29.2]}
30... Bxc2 {[%clk 0:03:47.8]} 31. Rc1 {[%clk 0:04:29.7]} 31... Bxa4 {[%clk
0:03:18.8]} 32. Rc7 {[%clk 0:04:28.9]} 32... Rd8 {[%clk 0:03:15.8]} 33. Bxf7+
{[%clk 0:04:27.6]} 33... Kf8 {[%clk 0:03:17]} 34. d5 {[%clk 0:04:02.2]} 34...
Rd7 {[%clk 0:03:09.8]} 35. Rc4 {[%clk 0:02:59.4]} 35... b5 {[%clk 0:02:42.9]}
36. Rd4 {[%clk 0:02:34.7]} 36... Kxf7 {[%clk 0:02:41.6]} 37. Kf1 {[%clk
0:02:31.9]} 37... Bb3 {[%clk 0:02:40.8]} 38. d6 {[%clk 0:02:32.5]} 38... Ke6
{[%clk 0:02:40.2]} 39. Ke1 {[%clk 0:02:27.3]} 39... Rxd6 {[%clk 0:02:39.5]} 40.
Re4+ {[%clk 0:02:26.9]} 40... Kd5 {[%clk 0:02:38.1]} 41. Rh4 {[%clk 0:02:26]}
41... Bc4 {[%clk 0:02:23]} 42. Kd2 {[%clk 0:02:01.3]} 42... Kc5+ {[%clk
0:02:20]} 43. Kc2 {[%clk 0:01:55.3]} 43... Re6 {[%clk 0:02:19.9]} 44. f4 {[%clk
0:01:54.6]} 44... Re2+ {[%clk 0:02:18.4]} 45. Kd1 {[%clk 0:01:53.2]} 45... Rg2
{[%clk 0:02:12.5]} 46. Rxh7 {[%clk 0:01:52.3]} 46... b4 {[%clk 0:02:13.4]} 47.
Rc7+ {[%clk 0:01:43.4]} 47... Kd4 {[%clk 0:02:13.9]} 0-1

[Event "GrandPrix_30.05"]
[Site "Chess.com"]
[Date "2020.05.30"]
[Round "2"]
[White "esskeettit"]
[Black "SacrificeGod"]
[Result "1-0"]
[WhiteElo "2132"]
[BlackElo "2255"]
[TimeControl "600+2"]
[EndTime "8:51:33 PDT"]
[Termination "esskeettit won by resignation"]

1. d4 {[%clk 0:10:01.9]} 1... Nf6 {[%clk 0:09:59.1]} 2. c4 {[%clk 0:10:03.2]}
2... g6 {[%clk 0:09:58.9]} 3. Nc3 {[%clk 0:10:03.1]} 3... Bg7 {[%clk 0:09:58.1]}
4. e4 {[%clk 0:10:03.5]} 4... d6 {[%clk 0:09:58.7]} 5. Nf3 {[%clk 0:10:02.4]}
5... O-O {[%clk 0:09:59]} 6. Be2 {[%clk 0:10:03.5]} 6... e5 {[%clk 0:09:56.4]}
7. O-O {[%clk 0:10:04.6]} 7... Nc6 {[%clk 0:09:45.4]} 8. d5 {[%clk 0:10:04.6]}
8... Ne7 {[%clk 0:09:45.1]} 9. b4 {[%clk 0:10:04.9]} 9... a5 {[%clk 0:08:38.4]}
10. Ba3 {[%clk 0:10:02.9]} 10... axb4 {[%clk 0:07:42.5]} 11. Bxb4 {[%clk
0:10:04.8]} 11... Nd7 {[%clk 0:07:42.3]} 12. a4 {[%clk 0:09:50.5]} 12... h6
{[%clk 0:07:41.6]} 13. Nd2 {[%clk 0:09:14]} 13... f5 {[%clk 0:07:39.8]} 14. f3
{[%clk 0:09:15]} 14... f4 {[%clk 0:06:30.5]} 15. Qb3 {[%clk 0:09:11.4]} 15...
Nc5 {[%clk 0:05:13.6]} 16. Bxc5 {[%clk 0:08:55.7]} 16... dxc5 {[%clk 0:05:13.2]}
17. a5 {[%clk 0:08:50.8]} 17... g5 {[%clk 0:04:08.5]} 18. Rfd1 {[%clk
0:08:46.4]} 18... Ra6 {[%clk 0:04:02.7]} 19. Qa3 {[%clk 0:08:15.4]} 19... b6
{[%clk 0:02:57.2]} 20. Qb2 {[%clk 0:07:43]} 20... Rf6 {[%clk 0:02:50.2]} 21. Nb5
{[%clk 0:07:10.9]} 21... Rg6 {[%clk 0:02:45]} 22. axb6 {[%clk 0:06:51.4]} 22...
Raxb6 {[%clk 0:01:45.2]} 23. Nb3 {[%clk 0:06:40.8]} 23... h5 {[%clk 0:01:44.4]}
24. Nxc5 {[%clk 0:06:38.9]} 24... Qf8 {[%clk 0:01:13.3]} 25. Na4 {[%clk
0:06:13.5]} 25... Rxb5 {[%clk 0:00:19.3]} 26. cxb5 {[%clk 0:05:51.9]} 26... g4
{[%clk 0:00:21.2]} 27. b6 {[%clk 0:05:46.4]} 27... Qf6 {[%clk 0:00:17.4]} 28. b7
{[%clk 0:05:30.8]} 28... Bxb7 {[%clk 0:00:15.2]} 29. Qxb7 {[%clk 0:05:32.7]}
29... Qh4 {[%clk 0:00:15.9]} 30. Qxc7 {[%clk 0:05:10.6]} 30... gxf3 {[%clk
0:00:11.6]} 31. Bxf3 {[%clk 0:05:12.5]} 31... Rg3 {[%clk 0:00:10.7]} 32. hxg3
{[%clk 0:04:57.1]} 32... fxg3 {[%clk 0:00:11.8]} 33. Qd8+ {[%clk 0:04:20.9]}
33... Kh7 {[%clk 0:00:11.3]} 34. d6 {[%clk 0:04:13.1]} 34... Qh2+ {[%clk
0:00:11.6]} 35. Kf1 {[%clk 0:04:13.8]} 35... Ng6 {[%clk 0:00:13.5]} 36. Qg5
{[%clk 0:03:53.2]} 36... Nf4 {[%clk 0:00:12]} 37. Qf5+ {[%clk 0:03:54.1]} 37...
Kh6 {[%clk 0:00:11]} 38. Qxf4+ {[%clk 0:03:16.8]} 38... exf4 {[%clk 0:00:10.6]}
39. d7 {[%clk 0:03:17.7]} 39... Bd4 {[%clk 0:00:11.4]} 40. Rxd4 {[%clk
0:03:09.1]} 40... Qh1+ {[%clk 0:00:12.7]} 41. Ke2 {[%clk 0:03:10.4]} 41... Qxa1
{[%clk 0:00:11.7]} 42. d8=Q {[%clk 0:03:00.9]} 42... Qa2+ {[%clk 0:00:13]} 43.
Rd2 {[%clk 0:03:01.4]} 43... Qc4+ {[%clk 0:00:14]} 44. Qd3 {[%clk 0:03:02.5]}
44... Qxa4 {[%clk 0:00:14.4]} 45. Qd6+ {[%clk 0:03:03.4]} 1-0

[Event "GrandPrix_30.05"]
[Site "Chess.com"]
[Date "2020.05.30"]
[Round "2"]
[White "Pidzsy"]
[Black "Msb2"]
[Result "0-1"]
[WhiteElo "2289"]
[BlackElo "2664"]
[TimeControl "600+2"]
[EndTime "8:51:37 PDT"]
[Termination "Msb2 won by resignation"]

1. e4 {[%clk 0:10:01.9]} 1... e6 {[%clk 0:10:00.2]} 2. d4 {[%clk 0:10:02]} 2...
d5 {[%clk 0:10:01.4]} 3. e5 {[%clk 0:10:00.3]} 3... c5 {[%clk 0:10:01.9]} 4. c3
{[%clk 0:10:00.9]} 4... Qb6 {[%clk 0:10:02.8]} 5. Nf3 {[%clk 0:10:00]} 5... Nc6
{[%clk 0:10:04.1]} 6. a3 {[%clk 0:09:59.1]} 6... c4 {[%clk 0:10:04.9]} 7. Be2
{[%clk 0:09:55.6]} 7... Na5 {[%clk 0:10:05.8]} 8. Nbd2 {[%clk 0:09:56]} 8... Bd7
{[%clk 0:10:06.9]} 9. O-O {[%clk 0:09:55]} 9... Ne7 {[%clk 0:10:08]} 10. a4
{[%clk 0:09:51.2]} 10... Qc6 {[%clk 0:09:55.3]} 11. Qc2 {[%clk 0:09:47.2]} 11...
Nc8 {[%clk 0:09:24.1]} 12. Bd1 {[%clk 0:09:47.1]} 12... Be7 {[%clk 0:09:24.5]}
13. Re1 {[%clk 0:09:45.6]} 13... Nb6 {[%clk 0:09:23]} 14. Qb1 {[%clk 0:09:46.4]}
14... g5 {[%clk 0:09:03.6]} 15. b4 {[%clk 0:07:58.5]} 15... cxb3 {[%clk
0:08:57.6]} 16. Nxb3 {[%clk 0:07:59.6]} 16... Nxb3 {[%clk 0:08:28.4]} 17. Qxb3
{[%clk 0:07:40.8]} 17... g4 {[%clk 0:08:09.9]} 18. Nd2 {[%clk 0:07:41.3]} 18...
h5 {[%clk 0:08:11.6]} 19. a5 {[%clk 0:07:39.4]} 19... Nc4 {[%clk 0:08:12.4]} 20.
Nxc4 {[%clk 0:07:31.1]} 20... dxc4 {[%clk 0:08:12.4]} 21. Qb1 {[%clk 0:07:23.5]}
21... Qd5 {[%clk 0:07:49.5]} 22. Bc2 {[%clk 0:07:13.1]} 22... Bc6 {[%clk
0:07:47.6]} 23. Be4 {[%clk 0:07:12.9]} 23... Qd7 {[%clk 0:07:49.2]} 24. Ba3
{[%clk 0:06:53.1]} 24... Bxa3 {[%clk 0:07:08.7]} 25. Rxa3 {[%clk 0:06:51.9]}
25... h4 {[%clk 0:07:10.3]} 26. Ra2 {[%clk 0:05:58.7]} 26... h3 {[%clk
0:06:27.4]} 27. Rb2 {[%clk 0:05:53.7]} 27... O-O-O {[%clk 0:05:07.4]} 28. Rb4
{[%clk 0:04:42.8]} 28... Bd5 {[%clk 0:04:44.8]} 29. Rb5 {[%clk 0:04:06.4]} 29...
Kb8 {[%clk 0:04:15.6]} 30. g3 {[%clk 0:02:33.6]} 30... Rhg8 {[%clk 0:03:05.5]}
31. Rc5 {[%clk 0:02:25]} 31... Rc8 {[%clk 0:02:46.7]} 32. Rxd5 {[%clk
0:02:15.4]} 32... exd5 {[%clk 0:02:47.7]} 33. Bf5 {[%clk 0:02:17]} 33... Qc6
{[%clk 0:02:32.6]} 34. Bxc8 {[%clk 0:02:17.6]} 34... Qxc8 {[%clk 0:02:15.9]} 35.
Qh7 {[%clk 0:02:01.3]} 35... Rd8 {[%clk 0:02:02.7]} 36. Qxf7 {[%clk 0:01:58.3]}
36... Rf8 {[%clk 0:01:59.4]} 37. e6 {[%clk 0:01:51.6]} 37... Rxf7 {[%clk
0:01:50.6]} 38. exf7 {[%clk 0:01:52.3]} 38... Qf5 {[%clk 0:01:52.3]} 39. Re8+
{[%clk 0:01:22.9]} 39... Kc7 {[%clk 0:01:52.1]} 40. Re7+ {[%clk 0:01:24.3]}
40... Kd6 {[%clk 0:01:47.1]} 41. Rxb7 {[%clk 0:01:23.9]} 41... Qf3 {[%clk
0:01:44.7]} 0-1

[Event "GrandPrix_30.05"]
[Site "Chess.com"]
[Date "2020.05.30"]
[Round "2"]
[White "Alexander_Donchenko"]
[Black "swisspower96"]
[Result "1-0"]
[WhiteElo "2749"]
[BlackElo "2344"]
[TimeControl "600+2"]
[EndTime "8:52:00 PDT"]
[Termination "Alexander_Donchenko won by resignation"]

1. Nf3 {[%clk 0:10:01.9]} 1... d5 {[%clk 0:10:00.4]} 2. g3 {[%clk 0:10:02.3]}
2... c5 {[%clk 0:10:01.1]} 3. Bg2 {[%clk 0:10:02.8]} 3... Nf6 {[%clk 0:10:02.5]}
4. O-O {[%clk 0:10:03.3]} 4... e6 {[%clk 0:10:04]} 5. d4 {[%clk 0:09:49]} 5...
cxd4 {[%clk 0:10:04.8]} 6. Nxd4 {[%clk 0:09:50.9]} 6... e5 {[%clk 0:10:06.3]} 7.
Nf3 {[%clk 0:09:51.5]} 7... Nc6 {[%clk 0:10:07.1]} 8. c4 {[%clk 0:09:52.3]} 8...
d4 {[%clk 0:10:08.5]} 9. e3 {[%clk 0:09:53.6]} 9... Be7 {[%clk 0:10:09.1]} 10.
exd4 {[%clk 0:09:54.7]} 10... exd4 {[%clk 0:10:11]} 11. Bf4 {[%clk 0:09:56.1]}
11... O-O {[%clk 0:10:08.5]} 12. Ne5 {[%clk 0:09:56.4]} 12... Qb6 {[%clk
0:09:48.2]} 13. Re1 {[%clk 0:09:56.6]} 13... Nxe5 {[%clk 0:09:26.3]} 14. Bxe5
{[%clk 0:09:55.3]} 14... Rd8 {[%clk 0:09:27.5]} 15. Qb3 {[%clk 0:08:58.4]} 15...
d3 {[%clk 0:05:53.9]} 16. Qxb6 {[%clk 0:06:36.9]} 16... axb6 {[%clk 0:05:53.6]}
17. Bc7 {[%clk 0:06:13]} 17... Bb4 {[%clk 0:05:11.9]} 18. Nc3 {[%clk 0:05:28.3]}
18... Rd4 {[%clk 0:03:16.9]} 19. Bxb6 {[%clk 0:04:03.1]} 19... Rxc4 {[%clk
0:03:17]} 20. Red1 {[%clk 0:03:51.2]} 20... Bf5 {[%clk 0:03:03.6]} 21. Bxb7
{[%clk 0:02:03.6]} 21... Rb8 {[%clk 0:02:21.2]} 22. Ba6 {[%clk 0:02:04.1]} 22...
Rxc3 {[%clk 0:00:22.2]} 23. bxc3 {[%clk 0:02:02.3]} 23... Bxc3 {[%clk
0:00:23.6]} 24. Rac1 {[%clk 0:01:24.1]} 24... Rxb6 {[%clk 0:00:20.2]} 25. Bxd3
{[%clk 0:01:24.1]} 25... Bb2 {[%clk 0:00:05.6]} 26. Bxf5 {[%clk 0:01:22.2]}
26... Bxc1 {[%clk 0:00:06.8]} 27. Rd8+ {[%clk 0:01:22.8]} 1-0

[Event "GrandPrix_30.05"]
[Site "Chess.com"]
[Date "2020.05.30"]
[Round "2"]
[White "Iljin_Timofey"]
[Black "TheNextLevelFan"]
[Result "1/2-1/2"]
[WhiteElo "2269"]
[BlackElo "2490"]
[TimeControl "600+2"]
[EndTime "8:52:03 PDT"]
[Termination "Game drawn - insufficient material"]

1. d4 {[%clk 0:10:01.9]} 1... d5 {[%clk 0:10:00.7]} 2. c4 {[%clk 0:10:02.4]}
2... dxc4 {[%clk 0:10:01.9]} 3. e4 {[%clk 0:10:02.9]} 3... e5 {[%clk 0:10:01.7]}
4. Nf3 {[%clk 0:10:03.4]} 4... exd4 {[%clk 0:10:02.1]} 5. Bxc4 {[%clk
0:10:04.3]} 5... Nf6 {[%clk 0:09:50.6]} 6. e5 {[%clk 0:10:00.4]} 6... Nd5 {[%clk
0:09:44.9]} 7. O-O {[%clk 0:09:59.1]} 7... Be7 {[%clk 0:09:24.2]} 8. Qxd4 {[%clk
0:09:41.6]} 8... Nb6 {[%clk 0:09:22.5]} 9. Bb3 {[%clk 0:09:28.5]} 9... Qxd4
{[%clk 0:09:20.4]} 10. Nxd4 {[%clk 0:09:30.4]} 10... O-O {[%clk 0:09:16.1]} 11.
Nc3 {[%clk 0:09:28.2]} 11... Na6 {[%clk 0:08:58.2]} 12. Be3 {[%clk 0:09:20.3]}
12... c6 {[%clk 0:08:52.9]} 13. Rad1 {[%clk 0:09:14.3]} 13... Nc5 {[%clk
0:08:49.2]} 14. Bc2 {[%clk 0:09:03.9]} 14... Nc4 {[%clk 0:08:49]} 15. Bc1 {[%clk
0:08:47.3]} 15... Nxe5 {[%clk 0:08:44.2]} 16. Rfe1 {[%clk 0:08:49.2]} 16... Bf6
{[%clk 0:08:32.4]} 17. Bf4 {[%clk 0:08:39.8]} 17... Nc4 {[%clk 0:08:10]} 18. b3
{[%clk 0:08:28.6]} 18... Ne6 {[%clk 0:08:09.5]} 19. Nxe6 {[%clk 0:08:07.4]}
19... Bxe6 {[%clk 0:08:11.4]} 20. Ne4 {[%clk 0:08:08.1]} 20... Be5 {[%clk
0:06:23.6]} 21. Bxe5 {[%clk 0:07:48.8]} 21... Nxe5 {[%clk 0:06:25.5]} 22. Ng5
{[%clk 0:07:50.2]} 22... Ng6 {[%clk 0:06:26.6]} 23. Nxe6 {[%clk 0:07:46.4]}
23... fxe6 {[%clk 0:06:28.5]} 24. Bxg6 {[%clk 0:07:27]} 24... hxg6 {[%clk
0:06:30.4]} 25. Rxe6 {[%clk 0:07:28.3]} 25... Rad8 {[%clk 0:06:30.4]} 26. Ree1
{[%clk 0:06:39.4]} 26... Kf7 {[%clk 0:06:26]} 27. h4 {[%clk 0:06:30.3]} 27...
Rxd1 {[%clk 0:06:16.1]} 28. Rxd1 {[%clk 0:06:32.2]} 28... Ke7 {[%clk 0:06:17.6]}
29. Re1+ {[%clk 0:06:11.4]} 29... Kd7 {[%clk 0:06:18.1]} 30. Re2 {[%clk
0:06:05.3]} 30... c5 {[%clk 0:06:07.1]} 31. g3 {[%clk 0:05:57.8]} 31... b5
{[%clk 0:05:55.3]} 32. f4 {[%clk 0:05:57.9]} 32... Rc8 {[%clk 0:05:34.8]} 33.
Kf2 {[%clk 0:05:57.2]} 33... c4 {[%clk 0:05:33]} 34. bxc4 {[%clk 0:05:59.1]}
34... Rxc4 {[%clk 0:05:34.2]} 35. Kf3 {[%clk 0:05:56.3]} 35... b4 {[%clk
0:05:21.8]} 36. Kg4 {[%clk 0:05:50.9]} 36... Rc5 {[%clk 0:05:16]} 37. Rb2 {[%clk
0:05:24.4]} 37... a5 {[%clk 0:05:15.4]} 38. Kf3 {[%clk 0:05:09.3]} 38... Rc3+
{[%clk 0:05:13.4]} 39. Kg4 {[%clk 0:05:09.6]} 39... Kc6 {[%clk 0:05:11.3]} 40.
Rg2 {[%clk 0:05:09.3]} 40... Rc5 {[%clk 0:05:08.9]} 41. Kf3 {[%clk 0:04:57.1]}
41... a4 {[%clk 0:04:49.4]} 42. Ke4 {[%clk 0:04:52.6]} 42... Kb5 {[%clk
0:04:47.5]} 43. g4 {[%clk 0:04:50]} 43... b3 {[%clk 0:04:46.9]} 44. axb3 {[%clk
0:04:50.5]} 44... axb3 {[%clk 0:04:48.8]} 45. f5 {[%clk 0:04:31.2]} 45... gxf5+
{[%clk 0:04:06]} 46. gxf5 {[%clk 0:04:33.1]} 46... Rc7 {[%clk 0:04:07.1]} 47. h5
{[%clk 0:03:51.8]} 47... Kb4 {[%clk 0:04:05.3]} 48. f6 {[%clk 0:03:30.4]} 48...
gxf6 {[%clk 0:04:03.4]} 49. h6 {[%clk 0:02:25]} 49... Rh7 {[%clk 0:03:12.8]} 50.
Rh2 {[%clk 0:02:23.8]} 50... Kc3 {[%clk 0:03:02.4]} 51. Kf5 {[%clk 0:02:24]}
51... b2 {[%clk 0:02:50]} 52. Rxb2 {[%clk 0:02:19.9]} 52... Kxb2 {[%clk
0:02:50.2]} 53. Kg6 {[%clk 0:02:20.8]} 53... Rh8 {[%clk 0:01:59.4]} 54. Kg7
{[%clk 0:02:17.9]} 54... Rc8 {[%clk 0:01:32.4]} 55. Kxf6 {[%clk 0:02:16.1]}
55... Kc3 {[%clk 0:01:33.1]} 56. h7 {[%clk 0:02:16.4]} 56... Kd4 {[%clk
0:01:33.3]} 57. Kg7 {[%clk 0:02:16.8]} 57... Ke5 {[%clk 0:01:30.8]} 58. h8=Q
{[%clk 0:02:18.7]} 58... Rxh8 {[%clk 0:01:31.3]} 59. Kxh8 {[%clk 0:02:20.1]}
1/2-1/2

[Event "GrandPrix_30.05"]
[Site "Chess.com"]
[Date "2020.05.30"]
[Round "2"]
[White "ValeriyGrinev"]
[Black "aleksandrovaleksei"]
[Result "0-1"]
[WhiteElo "2122"]
[BlackElo "2511"]
[TimeControl "600+2"]
[EndTime "8:52:04 PDT"]
[Termination "aleksandrovaleksei won by resignation"]

1. c4 {[%clk 0:10:01.5]} 1... e6 {[%clk 0:10:00.4]} 2. Nc3 {[%clk 0:09:58.8]}
2... d5 {[%clk 0:10:00.8]} 3. d4 {[%clk 0:09:58.7]} 3... Bb4 {[%clk 0:10:01.8]}
4. Nf3 {[%clk 0:09:48.8]} 4... Nf6 {[%clk 0:10:01.8]} 5. Bg5 {[%clk 0:09:49.3]}
5... h6 {[%clk 0:10:01]} 6. Bxf6 {[%clk 0:09:48.9]} 6... Qxf6 {[%clk 0:10:02]}
7. Qa4+ {[%clk 0:09:42.4]} 7... Nc6 {[%clk 0:10:01]} 8. cxd5 {[%clk 0:09:42.4]}
8... exd5 {[%clk 0:10:01.2]} 9. e3 {[%clk 0:09:40.9]} 9... O-O {[%clk 0:10:02]}
10. Be2 {[%clk 0:09:36.2]} 10... Be6 {[%clk 0:10:01.5]} 11. O-O {[%clk 0:09:35]}
11... a6 {[%clk 0:10:01.8]} 12. Rfc1 {[%clk 0:09:24.1]} 12... Bd6 {[%clk
0:10:02]} 13. a3 {[%clk 0:08:50.1]} 13... Ne7 {[%clk 0:09:47]} 14. Qd1 {[%clk
0:08:24]} 14... Rad8 {[%clk 0:09:32]} 15. Na4 {[%clk 0:07:12]} 15... Bc8 {[%clk
0:08:29.9]} 16. Nc5 {[%clk 0:07:10.5]} 16... a5 {[%clk 0:07:54.9]} 17. b4 {[%clk
0:06:19.8]} 17... axb4 {[%clk 0:07:53.3]} 18. axb4 {[%clk 0:06:21.6]} 18... g5
{[%clk 0:07:26.1]} 19. e4 {[%clk 0:04:34]} 19... dxe4 {[%clk 0:06:57.8]} 20.
Nxe4 {[%clk 0:04:35.9]} 20... Qf4 {[%clk 0:05:42.5]} 21. Nxd6 {[%clk 0:03:39.6]}
21... Qxd6 {[%clk 0:05:41]} 22. Qc2 {[%clk 0:03:34]} 22... c6 {[%clk 0:04:37.5]}
23. b5 {[%clk 0:02:54.5]} 23... g4 {[%clk 0:02:17.2]} 24. Ne5 {[%clk 0:02:51.7]}
24... Qxd4 {[%clk 0:02:17.7]} 25. Nxg4 {[%clk 0:02:51.8]} 25... Bxg4 {[%clk
0:02:13.8]} 26. Ra4 {[%clk 0:02:51.6]} 26... Bf5 {[%clk 0:01:32.7]} 27. Rxd4
{[%clk 0:02:30.3]} 27... Bxc2 {[%clk 0:01:32.3]} 28. Rxd8 {[%clk 0:02:31.9]}
28... Rxd8 {[%clk 0:01:33.8]} 29. Rxc2 {[%clk 0:02:33.5]} 29... cxb5 {[%clk
0:01:33.8]} 30. Rb2 {[%clk 0:02:19.5]} 30... Nc6 {[%clk 0:01:27.2]} 31. Bxb5
{[%clk 0:01:36.5]} 31... Rd1+ {[%clk 0:01:26.7]} 32. Bf1 {[%clk 0:01:38]} 32...
Ne5 {[%clk 0:01:26.7]} 33. Rc2 {[%clk 0:01:08.8]} 33... b5 {[%clk 0:01:21.3]}
34. g3 {[%clk 0:00:59]} 34... Nf3+ {[%clk 0:01:19.1]} 35. Kh1 {[%clk 0:00:45.3]}
35... Rxf1+ {[%clk 0:01:18.9]} 36. Kg2 {[%clk 0:00:46.8]} 36... Ne1+ {[%clk
0:01:20.1]} 0-1